Cogmind - Beta 14 @@@ ROGUE MODE // 2024.09.07 @ 20:58:11 Player: THN-L0C Result: Destroyed by D-53 Grenadier with Mini Grenade Launcher Performance ------------- Evolutions (0) 0 Regions Visited (4) 800 Robots Destroyed (15) 75 Value Destroyed (383) 383 Prototype IDs (25) 500 Alien Tech Used (0) 0 Bonus (376) 376 TOTAL SCORE: 2134 Bonus ------- Follower Combat Kills 92 Aligned with FarCom 300 Friendly Fire -16 Cogmind --------- Core Integrity 0/250 Matter 267/300 Energy 30/100 System Corruption 0% Temperature Cool (0) Movement Core (350) Ox6 Location -9/Mines Parts ------- > --- POWER (1) -------- (None) > --- PROPULSION (2) --- (None) > --- UTILITY (2) ------ Large Storage Unit Seismic Detector > --- WEAPON (2) ------- (None) > --- INVENTORY (15) --- Improved Heat Sink High-capacity Storage Unit Huge Storage Unit Compact Matter Pod (150) Machine Analyzer Experimental Sensor Array Hacking Suite Particle Gun Heavy Particle Cannon Assault Rifle Assault Cannon Grenade Launcher Field Lobotomy Kit (5) Welding Torch Katana Peak State ------------ > --- POWER ------------ Ion Engine > --- PROPULSION ------- Light Treads Light Treads > --- UTILITY ---------- Large Storage Unit Seismic Detector > --- WEAPON ----------- Assault Rifle Shock Bomb Launcher > --- INVENTORY -------- Improved Heat Sink High-capacity Storage Unit Huge Storage Unit Compact Matter Pod Machine Analyzer Experimental Sensor Array Hacking Suite Particle Gun Heavy Particle Cannon Light Assault Rifle Assault Cannon Grenade Launcher Grenade Launcher Field Lobotomy Kit Welding Torch [Rating: 13] Favorites ----------- Power Ion Engine Engine Ion Engine Propulsion Light Treads Treads Light Treads Leg Aluminum Leg Utility Seismic Detector Device Seismic Detector Storage Large Storage Unit Weapon Light Assault Rifle Ballistic Gun Light Assault Rifle Launcher Shock Bomb Launcher Build | -11 -10 -10 -10 -9 ------- Run | Yrd Mat Min Exi Min Slots Evolved . | . . . . . Power . | . . . . . Propulsion . | . . . . . Utility . | . . . . . Weapon . | . . . . . Parts Attached 16 | 8 3 1 . 4 Power 3 | 1 1 1 . . Engine 3 | 1 1 1 . . Core . | . . . . . Reactor . | . . . . . Propulsion 3 | 3 . . . . Treads 2 | 2 . . . . Leg 1 | 1 . . . . Wheel . | . . . . . Hover . | . . . . . Flight . | . . . . . Utility 3 | 2 1 . . . Device 1 | 1 . . . . Storage 2 | 1 1 . . . Processor . | . . . . . Hackware . | . . . . . Protection . | . . . . . Artifact . | . . . . . Weapon 7 | 2 1 . . 4 Energy Gun . | . . . . . Energy Cannon . | . . . . . Ballistic Gun 3 | 2 1 . . . Ballistic Cannon . | . . . . . Launcher 4 | . . . . 4 Special Weapon . | . . . . . Impact Weapon . | . . . . . Slashing Weapon . | . . . . . Piercing Weapon . | . . . . . Special Melee Weapon . | . . . . . Unidentified Prototypes . | . . . . . Parts Lost 7 | . 2 . . 5 Power 3 | . 2 . . 1 Propulsion 2 | . . . . 2 Utility . | . . . . . Weapon 2 | . . . . 2 Highest Loss Streak 4 | . 1 . . 4 To Critical Strikes . | . . . . . Average Slot Usage (%) 94 | . 90 100 100 86 Engine 9 | . 4 14 14 5 Treads 27 | . 28 28 28 25 Device 14 | . 14 14 14 14 Storage 14 | . 14 14 14 14 Ballistic Gun 27 | . 28 28 28 19 Peak Build Rating 13 | 7 7 10 11 13 Average Rating 8 | 5 6 8 10 11 On Entrance 7 | . 7 7 10 11 Naked Turns . | . . . . . Heaviest Build 29 | 11 24 29 29 29 Greatest Support 40 | 40 40 40 40 40 Greatest Overweight (x) 8 | . . . . 8 Average Overweight (x) . | . . . . . Largest Inventory Capacity 15 | 8 15 15 15 15 Average Capacity 13 | 7 12 15 15 15 Most Carried 15 | 1 9 15 15 15 Average Carried 9 | . 6 10 14 14 Final Capacity 15 | 8 15 15 15 15 Final Carried 15 | 1 9 15 15 15 Class Distribution -------------------- 100% | Mutant Dominant Class ---------------- Mutant | -10/Materials Mutant | -10/Mines Mutant | -10/Exiles Mutant | -9/Mines Resources | -11 -10 -10 -10 -9 ----------- Run | Yrd Mat Min Exi Min Matter Collected 611 | 191 200 75 . 145 Remotely . | . . . . . Salvage Created 566 | 11 334 32 . 189 Parts 36 | 5 21 2 . 8 Haulers Intercepted 1 | . 1 . . . Recyclers Shooed 1 | 1 . . . . Parts Field Recycled . | . . . . . Retrieved Matter . | . . . . . Parts Self-Destructed . | . . . . . Prevented . | . . . . . Kills | -11 -10 -10 -10 -9 ------- Run | Yrd Mat Min Exi Min Combat Hostiles Destroyed 19 | . 8 2 . 9 Guns 11 | . 8 2 . 1 AOE 8 | . . . . 8 Classes Destroyed 6 | 1 3 . . 2 Tunneler 1 | 1 . . . . Hauler 1 | . 1 . . . Swarmer 5 | . 3 2 . . Grunt 7 | . 5 . . 2 Duelist 1 | . . . . 1 Assembled 6 | . . . . 6 Best Kill Streak 6 | 1 3 2 . 6 Combat Bots Only 6 | . 3 2 . 6 Max Kills in Single Turn 5 | 1 1 1 . 5 Gunslinging . | . . . . . Exploded 5 | . . . . 5 Melee . | . . . . . Uniques/NPCs Destroyed . | . . . . . Combat | -11 -10 -10 -10 -9 -------- Run | Yrd Mat Min Exi Min Hostile Shots Fired 96 | . 54 7 . 35 Missed 36 | . 18 5 . 13 Damage Taken 988 | . 443 15 . 530 Core 256 | . 80 7 . 169 Absorbed by Shields . | . . . . . Core Remaining (%) 100 | 100 . . . . Volleys Fired 67 | 9 49 3 . 6 Largest 2 | 2 2 2 . 2 Hottest 56 | 40 40 40 . 56 Shots Fired 129 | 18 98 6 . 7 Gun 124 | 18 98 6 . 2 Cannon . | . . . . . Launcher 5 | . . . . 5 Special . | . . . . . Kinetic 124 | 18 98 6 . 2 Thermal . | . . . . . Explosive 1 | . . . . 1 Electromagnetic 4 | . . . . 4 Robot Hit Streak 8 | 4 8 4 . 2 Robot Miss Streak 4 | 2 4 1 . 2 Penetration Max . | . . . . . Secondary Targets 1 | . 1 . . . Max Gunslinging Chain 1 | . 1 . . . Shots Hit Robots 77 | 11 57 5 . 4 Core Hits 48 | 3 21 4 . 20 Critical Kills 2 | . 2 . . . Critical Parts Destroyed . | . . . . . Critical Strikes 2 | . 2 . . . Destroy 2 | . 2 . . . Melee Attacks . | . . . . . Impact . | . . . . . Slashing . | . . . . . Piercing . | . . . . . Sneak Attacks . | . . . . . Combat Hostiles . | . . . . . Follow-up Attacks . | . . . . . Damage Inflicted 1265 | 88 471 49 . 657 Guns 628 | 88 464 49 . 27 Cannons . | . . . . . Explosions 630 | . . . . 630 Melee . | . . . . . Ramming 7 | . 7 . . . Kinetic 628 | 88 464 49 . 27 Thermal 65 | . . . . 65 Explosive 210 | . . . . 210 Electromagnetic 355 | . . . . 355 Impact . | . . . . . Slashing . | . . . . . Piercing . | . . . . . Highest Corruption . | . . . . . Average Corruption . | . . . . . Corruption Purged . | . . . . . Corruption Blocked . | . . . . . Overload Shots . | . . . . . Overflow Damage . | . . . . . Projectiles . | . . . . . Explosions . | . . . . . Melee . | . . . . . Knockbacks . | . . . . . Impact . | . . . . . Kinetic . | . . . . . Secondary . | . . . . . Self-Inflicted Damage 50 | . . . . 50 Shots 3 | . . . . 3 Rammed 2 | . 2 . . . Targets Rammed 2 | . 2 . . . Kicked . | . . . . . Crushed . | . . . . . Highest Temperature 29 | . 29 . . 6 Average Temperature 10 | . 11 . . 5 Received Heat Transfer 371 | . 255 . . 116 Siege Activations . | . . . . . Robots Corrupted . | . . . . . Combat Hostiles . | . . . . . Parts Fried . | . . . . . Impact Corruptions . | . . . . . Robots Melted . | . . . . . Combat Hostiles . | . . . . . Parts Melted . | . . . . . Heat Transferred 100 | . . . . 100 Parts Sabotaged . | . . . . . Parts Stolen . | . . . . . Parts Stripped . | . . . . . Power Chain Reactions 2 | . . . . 2 Alert | -11 -10 -10 -10 -9 ------- Run | Yrd Mat Min Exi Min Peak Influence 233 | 5 233 81 . 191 Initial 3 | . 3 . . . Average 49 | 1 64 20 . 85 Maximum Alert Level 1 | . 1 . . . Low Security (%) 97 | 100 95 100 . 100 Level 1 2 | . 4 . . . Level 2 . | . . . . . Level 3 . | . . . . . Level 4 . | . . . . . Level 5 . | . . . . . High Security . | . . . . . Max Security . | . . . . . Squads Dispatched 3 | . 1 1 . 1 Investigation 1 | . . 1 . . Extermination . | . . . . . Reinforcement 1 | . 1 . . . Assault 1 | . . . . 1 Garrison . | . . . . . Intercept . | . . . . . Searches Triggered . | . . . . . Construction Impeded . | . . . . . Haulers Reinforced . | . . . . . Active Scanning Responses . | . . . . . Cargo Convoy Interrupts . | . . . . . Stealth | -11 -10 -10 -10 -9 --------- Run | Yrd Mat Min Exi Min Distress Signals 2 | . 2 . . . Communications Jammed . | . . . . . Distress Signals . | . . . . . Times Spotted 48 | . 20 3 . 25 Peak Tracking Total 15 | . 5 3 . 15 Tactical Retreats 1 | . . . . 1 Traps | -11 -10 -10 -10 -9 ------- Run | Yrd Mat Min Exi Min Traps Triggered . | . . . . . Indirectly . | . . . . . Trap Hack Attempts . | . . . . . Triggered . | . . . . . Disarmed . | . . . . . Reprogrammed . | . . . . . Reused . | . . . . . Traps Extracted . | . . . . . Installed . | . . . . . Triggered . | . . . . . Machines | -11 -10 -10 -10 -9 ---------- Run | Yrd Mat Min Exi Min Machines Disabled . | . . . . . Max in Single Turn . | . . . . . Machines Repaired . | . . . . . Machines Dismantled . | . . . . . Machines Sabotaged . | . . . . . Overloaded Fab Kills . | . . . . . Hacking | -11 -10 -10 -10 -9 --------- Run | Yrd Mat Min Exi Min Machines Accessed 8 | . 6 1 1 . Terminals 6 | . 6 . . . Fabricators . | . . . . . Repair Stations . | . . . . . Recycling Units . | . . . . . Scanalyzers . | . . . . . Garrison Access . | . . . . . Total Hacks 24 | . 22 1 1 . Successful 15 | . 13 1 1 . Failed 9 | . 9 . . . Catastrophic . | . . . . . Database Lockouts . | . . . . . Manual 20 | . 19 . 1 . Terminals 22 | . 22 . . . Fabricators . | . . . . . Repair Stations . | . . . . . Recycling Units . | . . . . . Scanalyzers . | . . . . . Garrison Access . | . . . . . Terminal Hacks 6 | . 4 1 1 . Robot Analysis 1 | . 1 . . . Prototype ID Bank 1 | . 1 . . . Open Door 1 | . . 1 . . Terminal Index 2 | . 2 . . . Derelict Proto ID Bank 1 | . . . 1 . Fabricator Hacks . | . . . . . Repair Station Hacks . | . . . . . Recycling Unit Hacks . | . . . . . Scanalyzer . | . . . . . Garrison Access Hacks . | . . . . . Unauthorized Hacks 9 | . 9 . . . Terminals 9 | . 9 . . . Assimilate 1 | . 1 . . . Botnet 2 | . 2 . . . Skim 6 | . 6 . . . Fabricators . | . . . . . Repair Stations . | . . . . . Recycling Units . | . . . . . Scanalyzers . | . . . . . Garrison Access . | . . . . . Data Cores Recovered . | . . . . . Used . | . . . . . Hacking Detections 6 | . 6 . . . Full Trace Events 1 | . 1 . . . Feedback Events . | . . . . . Feedback Blocked . | . . . . . Robot Schematics Acquired . | . . . . . Robots Built . | . . . . . Authchips . | . . . . . Time . | . . . . . Total Robot Build Rating . | . . . . . Part Schematics Acquired . | . . . . . Parts Built . | . . . . . Authchips . | . . . . . Time . | . . . . . Total Part Build Rating . | . . . . . Parts Repaired . | . . . . . Time . | . . . . . Parts Recycled . | . . . . . Recycled Matter . | . . . . . Retrieved Matter . | . . . . . Retrieved Components . | . . . . . Parts Scanalyzed . | . . . . . Part Schematics Acquired . | . . . . . Parts Damaged . | . . . . . Bothacking | -11 -10 -10 -10 -9 ------------ Run | Yrd Mat Min Exi Min Used RIF Installer . | . . . . . Robots Hacked . | . . . . . Non-combat . | . . . . . Combat . | . . . . . Robot Hacks Applied . | . . . . . Relay Couplers Released . | . . . . . Fabnet Peak Effective % . | . . . . . Robots Rewired . | . . . . . Allies Hacked . | . . . . . Hacks Repelled . | . . . . . Allies | -11 -10 -10 -10 -9 -------- Run | Yrd Mat Min Exi Min Total Allies 6 | . . 5 . 1 Largest Group 5 | . . 5 5 4 Highest-Rated Group 96 | . . 96 96 71 Highest-Rated Ally 31 | . . 31 31 31 Total Orders . | . . . . . Ally Attacks 33 | . . 1 . 32 Total Damage 339 | . . 16 . 323 Kills 5 | . . 1 . 4 Allies Corrupted . | . . . . . Allies Melted . | . . . . . Intel | -11 -10 -10 -10 -9 ------- Run | Yrd Mat Min Exi Min Robot Analysis Total 1 | . 1 . . . Derelict Logs Recovered 4 | . . 3 . 1 Drone Launches . | . . . . . Drone Recoveries . | . . . . . Exploration | -11 -10 -10 -10 -9 ------------- Run | Yrd Mat Min Exi Min Turns Passed 2289 | 112 960 544 488 185 Spaces Moved 1066 | 56 328 308 278 96 Core 13 | 12 . . . 1 Treads 1053 | 44 328 308 278 95 Legs . | . . . . . Wheels . | . . . . . Hover . | . . . . . Flight . | . . . . . Fastest Speed 50 | 50 160 160 160 160 Average Speed 159 | 136 160 160 160 164 Slowest Speed 450 | 160 160 160 160 450 Overloaded Moves . | . . . . . Propulsion Burnouts . | . . . . . Robots Hopped . | . . . . . Cave-ins Triggered . | . . . . . Exploration Rate (%) 47 | 4 68 79 61 27 Regions Visited 4 Branch Regions 3 Pre-discovered Areas . | . . . . . Known Exits Taken 3 | . 1 1 1 . Unknown Exits Taken 1 | 1 . . . . Scrap Searched 3 | . . 1 . 2 Spaces Dug . | . . . . . Terrain Destroyed 25 | . . . . 25 Melee . | . . . . . Projectile . | . . . . . AOE 25 | . . . . 25 Terrain Rammed . | . . . . . Walls Destroyed . | . . . . . Machines Disabled . | . . . . . Actions | -11 -10 -10 -10 -9 --------- Run | Yrd Mat Min Exi Min Total 1548 | 74 683 354 322 115 Wait 377 | 1 294 34 43 5 Move 1062 | 55 327 307 277 96 Hop . | . . . . . Pick Up 18 | . 7 8 1 2 Fast Attach 9 | 8 1 . . . Attach 1 | . . 1 . . Detach 1 | 1 . . . . Swap 6 | . 2 . . 4 Drop 5 | . 1 1 1 2 Fire 67 | 9 49 3 . 6 Melee . | . . . . . Ram . | . . . . . Kick . | . . . . . Crush 2 | . 2 . . . Escape Stasis . | . . . . . Rewire . | . . . . . Trap . | . . . . . Miscellaneous . | . . . . . Route ------- -11/Scrapyard -10/Materials (discovered 6 exits: *Mat x3 / *Min x2 / Sub) -10/Mines (discovered 2 exits: *Mat / *Exi) -10/Exiles (discovered 2 exits: *Min x2) -9/Mines History --------- Turn | Location | Event 27 | -11/Scrapyard | Discovered new exit (range 15) 113 | -11/Scrapyard | Entered Materials 304 | -10/Materials | Build established: Mutant 411 | -10/Materials | Discovered new exit (range 3) 535 | -10/Materials | Discovered new exit (range 12) 594 | -10/Materials | Discovered new exit (range 14) 749 | -10/Materials | Loaded intel: 2 recycling unit locations 814 | -10/Materials | Identified exit to Mines 814 | -10/Materials | Identified exit to Subcaves 814 | -10/Materials | Identified exit to Materials 956 | -10/Materials | Learned Storage trap positions 1002 | -10/Materials | Learned location of 3 exits from Materials 1058 | -10/Materials | Loaded intel: 21 trap records 1073 | -10/Materials | Entered Mines 1090 | -10/Mines | Discovered exit to Materials (range 8) 1151 | -10/Mines | Found a damaged Exp. Sensor Array with a note attached 1154 | -10/Mines | Found Prototype Device 1207 | -10/Mines | Learned Materials security intel 1227 | -10/Mines | Assisted by bots powering up and referring to "LRC-V3" 1456 | -10/Mines | Identified exit to Exiles 1488 | -10/Mines | Met a Derelict shopkeep closing up shop 1587 | -10/Mines | Deemed a non-threat by the Exiles lab entrance 1617 | -10/Mines | Entered Exiles 1617 | -10/Exiles | Accompanied by 5 allies 1618 | -10/Exiles | Identified exit to Mines 1647 | -10/Exiles | Led the pair of lost Derelicts to a safe place 1657 | -10/Exiles | Met 8R-AWN 1683 | -10/Exiles | Met EX-HEX 1726 | -10/Exiles | Met EX-BIN 1829 | -10/Exiles | Aligned with FarCom system 1830 | -10/Exiles | Given EX-Vault access code 1870 | -10/Exiles | Opened EX-Vault 1890 | -10/Exiles | Found Field Lobotomy Kit 1923 | -10/Exiles | Warned to stay clear of 0b10 Research branches 1977 | -10/Exiles | Met EX-DEC 2105 | -10/Exiles | Left Exiles lab with Field Lobotomy Kit 2105 | -10/Exiles | Entered Mines 2105 | -9/Mines | Accompanied by 3 allies 2106 | -9/Mines | Met a Derelict testing a Signal Generator 2247 | -9/Mines | Assembled infested the area 2288 | -9/Mines | Core integrity fell below 50% 2290 | -9/Mines | Core integrity fell below 20% 2290 | -9/Mines | Destroyed by D-53 Grenadier with Mini Grenade Launcher Last Messages --------------- 02274_ as-37377 misfires. 02279_ Destroyed Asb. Hover Unit. 02281_ Destroyed Asb. Blade. 02281_ Lgt. Treads destroyed. 02281_ Trooper 1a destroyed. 02282_ as-88182 destroyed. 02283_ C-30 ARC bursts open, deploying its payload. 02283_ D-53 Grenadier unfolds itself. 02283_ as-51342 sneak attacks. 02284_ as-90801 destroyed. 02284_ as-09298 destroyed. 02284_ as-51342 destroyed. 02284_ as-22062 destroyed. 02284_ as-40333 destroyed. 02286_ 6L-GZ1(g) destroyed. 02286_ Grenade Launcher destroyed. 02287_ Mercenary 1a destroyed. 02287_ Shock Bomb Launcher destroyed. 02288_ U-05 Engineer destroyed. 02288_ U-05 Engineer lays Concrete. Map ----- +----------------------------------------------------+ | | | | | | | | | | | | | | | | | ?????????????????????????????????????????????????? | | ?????????????????????????????????????????????????? | | ?????????????????????????????????????????????????? | | ?????????????????????????????????????????????????? | | ?????????????????????????????????????????????????? | | ?????????????????????????????????????????????????? | | ???????????????????????????????????? ????????????? | | ??????????????????????????????????? ????????????? | | ?????????????????????????????????# ???????????? | | ??????????????????????????????#?# ???????????? | | ????????????????????????????? ## ??????????? | | ????????????????????????????? a#??????????? | | ??????????????????????#####? #??????????? | | ?????????????????????## # ## #??????????? | | ?????????????????????# #???????????? | | ?????????????????????# = #????????????? | | ?????????????????????# % #?????????????? | | ?????????????????????# @%= #?????????????? | | ?????????????????????# a #????????????? | | ?????????????????????# #??????????? | | ?????????????????????# # ?????????? | | ?????????????????????## *# ##?# ?????????? | | ?????????????????????###u ###???? ??????????? | | ????????????????????## ##????? ??????????? | | ????????????????###?# d #??????? ??????????? | | ???????????????? #?# d #???????????????????? | | ????????????????# #?# ##???????????????????? | | ????????????????# #?# ###????????????????????? | | ????????????????# #?## ##??????????????????????? | | ????????????????# #??## ######??????????????????? | | ????????????????# ##??#% #??????????????????? | | ???????????????## #### ### #??????????????????? | | ???????????????# ## #??????????????????????? | | ???????????????# =%! #??????????????????????? | | ???????????????# [ ##??????????????????????? | | ?????????# ##### = ##???????????????????????? | | ?????????# =%! ##????????????????????????? | | ?????????####### %# ##?????????????????????????? | | ???????????????#! #####??????????????????????????? | | ??????????????##%%"#?????????????????????????????? | | ?????????????##"=="#?????????????????????????????? | | ?????????????# " "#?????????????????????????????? | +----------------------------------------------------+ Best States ------------- Heat Dissipation 25 Energy Generation 10 Energy Capacity 250 Matter Stores 300 Matter Capacity 300 Sight Range 16 Terrain Scan Density 10 Evasion (%) 50 Recoil Reduction 2 Item Schematics ----------------- None Robot Schematics ------------------ None Fabricated ------------ Nothing Alien Tech Used ----------------- None Achievements -------------- None Challenges ------------ None Game ------ Seed LightSmartbombFilter Manual? 0 Play Time 00:22:32 Cumulative 237.7 hours Start 2024.09.07 @ 19:15:24 End 2024.09.07 @ 20:58:11 Sessions 1 Manual Loads 0 Difficulty Rogue Special Mode None Game No. 202 Rogue 202 Adventurer 0 Explorer 0 Win Type - Total 1 Types 0/0/0/1/0/0/0/0/0 Lore% 66 Gallery% 74 Achievement% 55 Wizard Run 0 Options --------- Layout 2 ASCII 0 Keyboard 1 Movement Vi Keybinds 0 Fullscreen 1 Font 32/SmallcapsGlow Map View 77x44 Zoom Use 0% Tactical HUD 1 Map Filters NONE Filters NONE Steam 1 RUN: 15467a57-3983-4314-b6c1-e7de38f2bdfa